Cogmind - Beta 13 @@@ ROGUE MODE // 2024.06.05 @ 14:56:27 Player: Kat Result: Self-destructed Performance ------------- Evolutions (2) 1000 Regions Visited (5) 1000 Robots Destroyed (61) 305 Value Destroyed (1488) 1488 Prototype IDs (26) 520 Alien Tech Used (0) 0 Bonus (297) 297 TOTAL SCORE: 4610 Bonus ------- Follower Combat Kills 33 Aligned with FarCom 300 Friendly Fire -36 Cogmind --------- Core Integrity 276/550 Matter 95/300 Energy 196/275 System Corruption 0% Temperature Critical (606) Movement Treading (400) Ox3 Location -8/Materials Parts ------- > --- POWER (1) -------- Deuterium Engine > --- PROPULSION (2) --- Improved Treads Improved Treads > --- UTILITY (4) ------ Improved Heat Sink High-capacity Storage Unit Sensor Drone Bay (20/20) > --- WEAPON (4) ------- Advanced Beam Cannon Advanced Beam Cannon Advanced Beam Cannon Advanced Beam Cannon > --- INVENTORY (20) --- Light Ion Engine Light Nuclear Core Light Treads Light Treads Improved Heat Sink Hacking Suite Hacking Suite Advanced Beam Cannon Advanced Beam Cannon Heavy Assault Rifle Heavy Assault Rifle Autogun Autogun Light Cannon Light Cannon Grenade Launcher Grenade Launcher Grenade Launcher Field Lobotomy Kit (5) Peak State ------------ > --- POWER ------------ Deuterium Engine > --- PROPULSION ------- Improved Treads Improved Treads > --- UTILITY ---------- Improved Heat Sink High-capacity Storage Unit Hardened Light Armor Plating Sensor Drone Bay > --- WEAPON ----------- Advanced Beam Cannon Advanced Beam Cannon Advanced Beam Cannon Advanced Beam Cannon > --- INVENTORY -------- Light Ion Engine Light Nuclear Core Light Treads Light Treads Hacking Suite Hacking Suite Advanced Beam Cannon Advanced Beam Cannon Heavy Assault Rifle Heavy Assault Rifle Autogun Autogun Light Cannon Light Cannon Grenade Launcher Grenade Launcher Grenade Launcher Field Lobotomy Kit [Rating: 37] Favorites ----------- Power Light Ion Engine Engine Light Ion Engine Propulsion Improved Treads Treads Improved Treads Leg Aluminum Leg Utility High-capacity Storage Unit Device Sensor Array Storage High-capacity Storage Unit Protection Light Armor Plating Weapon Light Cannon Energy Gun Medium Laser Energy Cannon Advanced Beam Cannon Ballistic Gun Autogun Ballistic Cannon Light Cannon Launcher Grenade Launcher Build | -11 -10 -10 -10 -9 -8 ------- Run | Yrd Mat Min Exi Min Mat Slots Evolved 4 | . . . . . 4 Power . | . . . . . . Propulsion . | . . . . . . Utility 2 | . . . . . 2 Weapon 2 | . . . . . 2 Parts Attached 70 | 8 15 18 2 6 21 Power 5 | 1 1 2 . . 1 Engine 5 | 1 1 2 . . 1 Core . | . . . . . . Reactor . | . . . . . . Propulsion 8 | 2 4 . . . 2 Treads 6 | . 4 . . . 2 Leg 2 | 2 . . . . . Wheel . | . . . . . . Hover . | . . . . . . Flight . | . . . . . . Utility 19 | 2 4 4 . 2 7 Device 9 | 1 2 1 . 1 4 Storage 3 | 1 2 . . . . Processor . | . . . . . . Hackware . | . . . . . . Protection 7 | . . 3 . 1 3 Artifact . | . . . . . . Weapon 38 | 3 6 12 2 4 11 Energy Gun 2 | 2 . . . . . Energy Cannon 5 | . . . . . 5 Ballistic Gun 14 | 1 2 3 . 2 6 Ballistic Cannon 9 | . 4 5 . . . Launcher 8 | . . 4 2 2 . Special Weapon . | . . . . . . Impact Weapon . | . . . . . . Slashing Weapon . | . . . . . . Piercing Weapon . | . . . . . . Special Melee Weapon . | . . . . . . Unidentified Prototypes 3 | . . 1 . 1 1 Parts Lost 10 | . . 1 . . 9 Power 2 | . . 1 . . 1 Propulsion 2 | . . . . . 2 Utility 4 | . . . . . 4 Weapon 2 | . . . . . 2 Highest Loss Streak 4 | . . 1 . . 4 To Critical Strikes . | . . . . . . Average Slot Usage (%) 96 | . 98 95 100 100 81 Engine 12 | . 14 9 14 14 5 Treads 23 | . 18 28 28 28 14 Leg 3 | . 8 . . . . Device 7 | . 13 10 . . 3 Storage 13 | . 14 14 14 14 9 Protection 6 | . . 3 14 14 16 Ballistic Gun 7 | . 8 6 . . 23 Ballistic Cannon 11 | . 18 18 . . . Launcher 9 | . . 3 28 27 . Naked Turns . | . . . . . . Heaviest Build 85 | 13 50 53 53 53 85 Greatest Support 46 | 20 46 46 46 46 46 Greatest Overweight (x) 20 | 1 1 1 1 1 20 Average Overweight (x) . | . . 1 1 1 1 Largest Inventory Capacity 20 | 8 20 20 20 20 20 Average Capacity 18 | 7 16 20 20 20 20 Most Carried 20 | 4 20 20 20 20 20 Average Carried 16 | 2 13 19 19 19 15 Final Capacity 20 | 8 20 20 20 20 20 Final Carried 20 | 4 20 20 19 19 19 Class Distribution -------------------- 91% | Mutant 4% | Tank 4% | Skirmisher Dominant Class ---------------- Mutant | -10/Materials Mutant | -10/Mines Mutant | -10/Exiles Mutant | -9/Mines Skirmisher | -8/Materials Resources | -11 -10 -10 -10 -9 -8 ----------- Run | Yrd Mat Min Exi Min Mat Matter Collected 1738 | 316 646 349 . 36 391 Remotely . | . . . . . . Salvage Created 1912 | 129 941 270 . 98 474 Parts 128 | 12 61 23 . 10 22 Haulers Intercepted 3 | . 2 . . . 1 Recyclers Shooed 4 | 1 3 . . . . Parts Field Recycled . | . . . . . . Retrieved Matter . | . . . . . . Parts Self-Destructed . | . . . . . . Prevented . | . . . . . . Kills | -11 -10 -10 -10 -9 -8 ------- Run | Yrd Mat Min Exi Min Mat Combat Hostiles Destroyed 43 | . 17 8 . 8 10 Guns 13 | . 5 . . . 8 Cannons 22 | . 12 8 . . 2 AOE 8 | . . . . 8 . Classes Destroyed 11 | 2 4 4 . 1 . Worker 1 | . . 1 . . . Tunneler 4 | 4 . . . . . Hauler 3 | . 2 . . . 1 Recycler 6 | 1 3 1 . . 1 Operator 2 | . 2 . . . . Watcher 3 | . 3 . . . . Swarmer 11 | . . 3 . 4 4 Grunt 29 | . 17 4 . 2 6 Sentry 1 | . . 1 . . . Zionite 1 | . . 1 . . . Assembled 2 | . . . . 2 . Best Kill Streak 6 | 2 4 3 . 6 4 Combat Bots Only 6 | . 4 3 . 6 4 Max Kills in Single Turn 3 | 1 1 1 . 3 3 Gunslinging 2 | . . . . . 2 Exploded 3 | . . . . 3 . Melee . | . . . . . . Uniques/NPCs Destroyed . | . . . . . . Combat | -11 -10 -10 -10 -9 -8 -------- Run | Yrd Mat Min Exi Min Mat Hostile Shots Fired 260 | . 54 35 . 29 142 Missed 67 | . 14 9 . 11 33 Damage Taken 2737 | . 498 345 . 341 1553 Core 513 | . 75 95 . 69 274 Absorbed by Shields . | . . . . . . Redirected to Shielding 50 | . . . . . 50 Regen/Repaired (Parts) 268 | . 268 . . . . Core Remaining (%) 52 | 100 . . . 4 . Volleys Fired 130 | 12 62 20 . 8 28 Largest 4 | 2 2 2 . 2 4 Hottest 272 | 70 70 70 . 60 272 Shots Fired 284 | 24 124 40 . 16 80 Gun 131 | 24 58 2 . . 47 Cannon 131 | . 66 34 . . 31 Launcher 22 | . . 4 . 16 2 Special . | . . . . . . Kinetic 219 | 12 124 36 . . 47 Thermal 41 | 10 . . . . 31 Explosive 22 | . . 4 . 16 2 Electromagnetic 2 | 2 . . . . . Robot Hit Streak 19 | 3 19 6 . 2 8 Robot Miss Streak 6 | 2 6 3 . 3 3 Penetration Max . | . . . . . . Secondary Targets 2 | . . . . . 2 Max Gunslinging Chain 2 | . . . . . 2 Shots Hit Robots 153 | 12 76 19 . 2 44 Core Hits 91 | 6 33 14 . 12 26 Critical Kills 1 | . 1 . . . . Critical Parts Destroyed . | . . . . . . Critical Strikes 7 | . 6 1 . . . Destroy 1 | . 1 . . . . Blast 6 | . 5 1 . . . Melee Attacks . | . . . . . . Impact . | . . . . . . Slashing . | . . . . . . Piercing . | . . . . . . Sneak Attacks . | . . . . . . Combat Hostiles . | . . . . . . Follow-up Attacks . | . . . . . . Damage Inflicted 3204 | 143 1276 442 . 439 904 Guns 1075 | 143 478 . . . 454 Cannons 1565 | . 798 376 . . 391 Explosions 544 | . . 66 . 435 43 Melee . | . . . . . . Ramming 20 | . . . . 4 16 Kinetic 2186 | 80 1276 376 . . 454 Thermal 511 | 50 . . . 70 391 Explosive 474 | . . 66 . 365 43 Electromagnetic 13 | 13 . . . . . Impact . | . . . . . . Slashing . | . . . . . . Piercing . | . . . . . . Highest Corruption . | . . . . . . Average Corruption . | . . . . . . Corruption Purged . | . . . . . . Corruption Blocked . | . . . . . . Overload Shots . | . . . . . . Overflow Damage 9 | . 1 . . 6 2 Projectiles 1 | . 1 . . . . Explosions 8 | . . . . 6 2 Melee . | . . . . . . Knockbacks 20 | . 16 4 . . . Impact . | . . . . . . Kinetic 19 | . 15 4 . . . Secondary 1 | . 1 . . . . Self-Inflicted Damage 159 | . . . . 118 41 Shots 8 | . . . . 7 1 Rammed 9 | . . . . 1 8 Targets Rammed 10 | . 1 . . 1 8 Kicked 1 | . 1 . . . . Crushed . | . . . . . . Highest Temperature 660 | 45 165 85 . 48 660 Average Temperature 76 | 16 31 28 . 16 241 Received Heat Transfer 1179 | . 273 168 . 36 702 Effects 13 | . . . . . 13 Shutdowns 3 | . . . . . 3 Matter Decay 2 | . . . . . 2 Short Circuit 3 | . . . . . 3 Damage (minor) 4 | . . . . . 4 Damage (core) 1 | . . . . . 1 Siege Activations . | . . . . . . Robots Corrupted . | . . . . . . Combat Hostiles . | . . . . . . Parts Fried . | . . . . . . Impact Corruptions . | . . . . . . Robots Melted . | . . . . . . Combat Hostiles . | . . . . . . Parts Melted 1 | . . . . 1 . Heat Transferred 951 | 148 . . . 100 703 Parts Sabotaged . | . . . . . . Parts Stolen . | . . . . . . Parts Stripped . | . . . . . . Power Chain Reactions . | . . . . . . Alert | -11 -10 -10 -10 -9 -8 ------- Run | Yrd Mat Min Exi Min Mat Peak Influence 239 | 25 146 140 . 239 205 Initial 38 | . 16 38 . . 38 Average 60 | 10 57 52 . 71 90 Maximum Alert Level 1 | . . . . 1 1 Low Security (%) 95 | 100 100 100 . 73 99 Level 1 4 | . . . . 26 . Level 2 . | . . . . . . Level 3 . | . . . . . . Level 4 . | . . . . . . Level 5 . | . . . . . . High Security . | . . . . . . Max Security . | . . . . . . Squads Dispatched 6 | . 4 . . . 2 Investigation 3 | . 3 . . . . Extermination . | . . . . . . Reinforcement 3 | . 1 . . . 2 Assault . | . . . . . . Garrison . | . . . . . . Intercept . | . . . . . . Searches Triggered . | . . . . . . Construction Impeded . | . . . . . . Haulers Reinforced . | . . . . . . Active Scanning Responses . | . . . . . . Cargo Convoy Interrupts . | . . . . . . Stealth | -11 -10 -10 -10 -9 -8 --------- Run | Yrd Mat Min Exi Min Mat Distress Signals 2 | . . . . 1 1 Communications Jammed . | . . . . . . Distress Signals . | . . . . . . Times Spotted 57 | . 25 8 . 6 18 Peak Tracking Total 6 | . 3 3 . 2 6 Tactical Retreats 3 | . 1 . . 1 1 Traps | -11 -10 -10 -10 -9 -8 ------- Run | Yrd Mat Min Exi Min Mat Traps Triggered . | . . . . . . Indirectly . | . . . . . . Trap Hack Attempts . | . . . . . . Triggered . | . . . . . . Disarmed . | . . . . . . Reprogrammed . | . . . . . . Reused . | . . . . . . Traps Extracted . | . . . . . . Installed . | . . . . . . Triggered 1 | . . . . 1 . Machines | -11 -10 -10 -10 -9 -8 ---------- Run | Yrd Mat Min Exi Min Mat Machines Disabled 5 | . 1 3 . 1 . Max in Single Turn 1 | . 1 1 . 1 . Machines Repaired . | . . . . . . Machines Dismantled . | . . . . . . Machines Sabotaged . | . . . . . . Overloaded Fab Kills . | . . . . . . Hacking | -11 -10 -10 -10 -9 -8 --------- Run | Yrd Mat Min Exi Min Mat Machines Accessed 15 | . 8 2 5 . . Terminals 8 | . 7 1 . . . Fabricators . | . . . . . . Repair Stations 1 | . 1 . . . . Recycling Units . | . . . . . . Scanalyzers . | . . . . . . Garrison Access . | . . . . . . Total Hacks 85 | . 31 4 50 . . Successful 72 | . 19 3 50 . . Failed 13 | . 12 1 . . . Catastrophic . | . . . . . . Database Lockouts . | . . . . . . Manual 22 | . 18 3 1 . . Terminals 25 | . 22 3 . . . Fabricators . | . . . . . . Repair Stations 9 | . 9 . . . . Recycling Units . | . . . . . . Scanalyzers . | . . . . . . Garrison Access . | . . . . . . Terminal Hacks 57 | . 4 3 50 . . Record 49 | . . . 49 . . Open Door 1 | . . 1 . . . Branch Access Points 1 | . 1 . . . . Terminal Index 1 | . 1 . . . . Locate Traps 2 | . 1 1 . . . Zone Layout 2 | . 1 1 . . . Derelict Proto ID Bank 1 | . . . 1 . . Fabricator Hacks . | . . . . . . Repair Station Hacks 8 | . 8 . . . . Scan Component 4 | . 4 . . . . Repair 4 | . 4 . . . . Recycling Unit Hacks . | . . . . . . Scanalyzer . | . . . . . . Garrison Access Hacks . | . . . . . . Unauthorized Hacks 7 | . 7 . . . . Terminals 7 | . 7 . . . . Botnet 6 | . 6 . . . . Operators 1 | . 1 . . . . Fabricators . | . . . . . . Repair Stations . | . . . . . . Recycling Units . | . . . . . . Scanalyzers . | . . . . . . Garrison Access . | . . . . . . Data Cores Recovered . | . . . . . . Used . | . . . . . . Hacking Detections 6 | . 6 . . . . Full Trace Events 4 | . 4 . . . . Feedback Events . | . . . . . . Feedback Blocked . | . . . . . . Robot Schematics Acquired . | . . . . . . Robots Built . | . . . . . . Authchips . | . . . . . . Time . | . . . . . . Total Robot Build Rating . | . . . . . . Part Schematics Acquired . | . . . . . . Parts Built . | . . . . . . Authchips . | . . . . . . Time . | . . . . . . Total Part Build Rating . | . . . . . . Parts Repaired 4 | . 4 . . . . Time 116 | . 116 . . . . Parts Recycled . | . . . . . . Recycled Matter . | . . . . . . Retrieved Matter . | . . . . . . Retrieved Components . | . . . . . . Parts Scanalyzed . | . . . . . . Part Schematics Acquired . | . . . . . . Parts Damaged . | . . . . . . Bothacking | -11 -10 -10 -10 -9 -8 ------------ Run | Yrd Mat Min Exi Min Mat Used RIF Installer . | . . . . . . Robots Hacked . | . . . . . . Non-combat . | . . . . . . Combat . | . . . . . . Robot Hacks Applied . | . . . . . . Relay Couplers Released . | . . . . . . Fabnet Peak Effective % . | . . . . . . Robots Rewired . | . . . . . . Allies Hacked . | . . . . . . Hacks Repelled . | . . . . . . Allies | -11 -10 -10 -10 -9 -8 -------- Run | Yrd Mat Min Exi Min Mat Total Allies 2 | . . 2 . . . Largest Group 2 | . . 2 . . . Highest-Rated Group 43 | . . 43 . . . Highest-Rated Ally 31 | . . 31 . . . Total Orders 2 | . . . . . 2 EXPLORE 2 | . . . . . 2 Ally Attacks 3 | . . 3 . . . Total Damage 42 | . . 42 . . . Kills 1 | . . 1 . . . Allies Corrupted . | . . . . . . Allies Melted . | . . . . . . Intel | -11 -10 -10 -10 -9 -8 ------- Run | Yrd Mat Min Exi Min Mat Robot Analysis Total . | . . . . . . Derelict Logs Recovered 1 | . . 1 . . . Drone Launches 2 | . . . . . 2 Drone Recoveries 2 | . . . . . 2 Exploration | -11 -10 -10 -10 -9 -8 ------------- Run | Yrd Mat Min Exi Min Mat Turns Passed 6627 | 181 2481 1348 1107 901 609 Spaces Moved 2577 | 111 1021 495 460 338 152 Core 15 | 7 . . . . 8 Treads 2029 | . 592 495 460 338 144 Legs 533 | 104 429 . . . . Wheels . | . . . . . . Hover . | . . . . . . Flight . | . . . . . . Fastest Speed 50 | 50 120 240 240 240 240 Average Speed 217 | 116 189 240 240 240 279 Slowest Speed 1050 | 120 240 240 240 240 1050 Overloaded Moves . | . . . . . . Propulsion Burnouts . | . . . . . . Robots Hopped . | . . . . . . Cave-ins Triggered . | . . . . . . Exploration Rate (%) 57 | 6 94 74 74 77 18 Regions Visited 5 Branch Regions 3 Pre-discovered Areas 2 | . . . 1 1 . Known Exits Taken 1 | . 1 . . . . Unknown Exits Taken 4 | 1 . 1 1 1 . Scrap Searched 2 | . . 1 . 1 . Spaces Dug 25 | . . . . 25 . Terrain Destroyed 167 | . . 29 . 118 20 Melee . | . . . . . . Projectile . | . . . . . . AOE 167 | . . 29 . 118 20 Terrain Rammed . | . . . . . . Walls Destroyed . | . . . . . . Machines Disabled . | . . . . . . Actions | -11 -10 -10 -10 -9 -8 --------- Run | Yrd Mat Min Exi Min Mat Total 3332 | 134 1457 615 464 410 252 Wait 460 | . 318 56 . 55 31 Move 2572 | 110 1020 494 459 337 152 Hop . | . . . . . . Pick Up 51 | 4 25 13 1 1 7 Fast Attach 17 | 7 5 1 . . 4 Attach 14 | . 1 . . 1 12 Detach 7 | . 2 . . 1 4 Swap 39 | 1 9 17 2 5 5 Drop 32 | . 14 14 2 1 1 Fire 130 | 12 62 20 . 8 28 Melee . | . . . . . . Ram 3 | . . . . . 3 Kick 1 | . 1 . . . . Crush 6 | . . . . 1 5 Escape Stasis . | . . . . . . Rewire . | . . . . . . Trap . | . . . . . . Miscellaneous . | . . . . . . Route ------- -11/Scrapyard -10/Materials (discovered 5 exits: [*Mat x3] / *Min x2) -10/Mines (discovered 2 exits: [*Mat] / *Exi) -10/Exiles -9/Mines -8/Materials (discovered 1 exit: [*Fac]) History --------- Turn | Location | Event 2 | -11/Scrapyard | Discovered new exit (range 16) 182 | -11/Scrapyard | Entered Materials 307 | -10/Materials | Build established: Mutant 588 | -10/Materials | Discovered new exit (range 16) 899 | -10/Materials | Discovered new exit (range 12) 1020 | -10/Materials | Discovered new exit (range 6) 1404 | -10/Materials | Discovered new exit (range 8) 1658 | -10/Materials | Identified exit to Mines 1692 | -10/Materials | Discovered new exit (range 16) 2378 | -10/Materials | Repaired Imp. Treads 2405 | -10/Materials | Repaired Lgt. Cannon 2432 | -10/Materials | Repaired Lgt. Cannon 2465 | -10/Materials | Repaired Imp. Treads 2663 | -10/Materials | Entered Mines 3108 | -10/Mines | Found the Drone Emporium 3122 | -10/Mines | Found Prototype Device 3330 | -10/Mines | Core integrity fell below 50% 3353 | -10/Mines | Discovered new exit (range 5) 3389 | -10/Mines | Learned Materials trap positions 3833 | -10/Mines | Identified Sensor Drone Bay 4002 | -10/Mines | Deemed a non-threat by the Exiles lab entrance 4002 | -10/Mines | Discovered new exit (range 5) 4011 | -10/Mines | Entered Exiles 4079 | -10/Exiles | Met 8R-AWN 4122 | -10/Exiles | Met EX-HEX 4218 | -10/Exiles | Met EX-DEC 4442 | -10/Exiles | Discovered new exit (range 10) 4588 | -10/Exiles | Learned location of Zion (-7) 4732 | -10/Exiles | Met EX-BIN 4758 | -10/Exiles | Aligned with FarCom system 4761 | -10/Exiles | Given EX-Vault access code 4881 | -10/Exiles | Opened EX-Vault 4896 | -10/Exiles | Found Field Lobotomy Kit 4945 | -10/Exiles | Warned to stay clear of 0b10 Research branches 5118 | -10/Exiles | Left Exiles lab with Field Lobotomy Kit 5118 | -10/Exiles | Entered Mines 5119 | -9/Mines | Learned location of Storage (-7) 5747 | -9/Mines | Found a damaged Exp. Sensor Array with a note attached 5748 | -9/Mines | Assembled infested the area 5753 | -9/Mines | Assisted by a Guerilla fighting off Assembled 5753 | -9/Mines | Found Prototype Device 5754 | -9/Mines | Identified Exp. Sensor Array 5909 | -9/Mines | Core integrity fell below 20% 5974 | -9/Mines | Discovered new exit (range 12) 6019 | -9/Mines | Entered Materials 6019 | -8/Materials | Evolved 4 slots: Utility x2, Weapon x2 6020 | -8/Materials | Loaded intel: 22 trap records 6340 | -8/Materials | Lost 4 parts (2n2u) 6434 | -8/Materials | Discovered new exit (range 16) 6628 | -8/Materials | Self-destructed Last Messages --------------- 06599_ Power failure, Deuterium Engine shutdown. 06601_ Overheating: Matter decay (-18). 06601_ G-47 Trooper heat short circuits Lgt. Nuclear Core. 06603_ Critical hit (Burn: +37). 06604_ G-47 Trooper destroyed. 06605_ Adv. Beam Cannon broken. 06605_ Overheating: Short circuit. 06606_ Overheating: Core damaged (-66). 06607_ Acquired 54 matter. 06608_ Power failure, Deuterium Engine shutdown. 06610_ Adv. Beam Cannon broken. 06610_ Overheating: Short circuit. 06618_ Imp. Treads broken. 06618_ Overheating: Short circuit. 06620_ Power failure, Deuterium Engine shutdown. 06623_ Overheating: Broken Adv. Beam Cannon damaged (-64). 06624_ Overheating: Matter decay (-22). 06625_ G-47 Trooper destroyed. 06626_ Overheating: Imp. Heat Sink damaged (-23). 06626_ Hrd. Light Armor Plating destroyed. Map ----- +----------------------------------------------------+ | ?????????????????????????????????????????????????? | | ?????????????????????????????????????????????????? | | ?????????????????????????????????????????????????? | | ?????????????????????????????????????????????????? | | ?????????????????????????????????????????????????? | | ???^^????????????????????????????????????????????? | | ???^^????????????????????????????????????????????? | | ???^^????????????????????????????????????????????? | | ?????????????????????????????????????????????????? | | ????????????^^^??????????????????????????????????? | | ????????????^^^??????????????????????????????????? | | ?????????????????????????????Y???????????????????? | | ?????????????????????????????????????????????????? | | ?????????????????????????????????????????????????? | | ?????????????????????????????????????????????????? | | ?????????????????????????????????????????????????? | | ?????????????????????????Y???????????????????????? | | ?????????????????????????????????????????????????? | | ?????????????????????????????????????????????????? | | ?????????????????????????????????????????????????? | | ????????????? ???? !????????????????????????????? | | ???????????# ???? =????????????????????????????? | | ???????????# ???? ????????????????????????????? | | ???????????# ???? ????????????????????????????? | | ???????????# #####+##?################?########? | | ???????????# T ###@ ## #?# #? | | ???????????# ug ##""" #?# "" #? | | ???????????# ###u ##""" #?# ""S #? | | ???????????# """ #?# r ##""" !#?# "" #? | | ???????????# """ #?# ! ## #?# #? | | ???????????# """ #?# %= ## [#?# ! #? | | ???????????# #######;######+######+###### | | ???????????# % = ! | | ???????????# """ = ! | | ???????????# """ | | ???????????# """ #### ########### #### | | ???????????# #??# #?????????# # | | ???????????# #??# #?????????#! !# | | ???????????# """ #??# #?????????##!!!!## | | ???????????# """ #??# #??????????####### " | | ???????????# """ #??# #????????????????# " | | ???????????# #??# #????????????????# " | | ???????????# #??# #????????????????# | | ???????????# #??# #????????????????#% | | ???????????######### ##??# #????????????????# | | ???????????????????# #???# #????????????????##?# | | ???????????????????# #???# #???????????????????? | | ???????????????????# #???# #???????????????????? | | ???????????????????# #???# ???????????????????? | | ???????????????????# #???#####???????????????????? | +----------------------------------------------------+ Best States ------------- Heat Dissipation 45 Energy Generation 15 Energy Capacity 275 Matter Stores 300 Matter Capacity 300 Sight Range 16 Robot Scan Range 20 Terrain Scan Density 10 Armor Coverage 300 Weapon Shielding 33 Evasion (%) 55 Recoil Reduction 2 Item Schematics ----------------- None Robot Schematics ------------------ None Fabricated ------------ Nothing Alien Tech Used ----------------- None Achievements -------------- Gunslinger Challenges ------------ None Game ------ Seed AlphaCompositeStorm Manual? 0 Play Time 00:52:18 Cumulative 23.8 hours Start 2024.06.05 @ 13:26:22 End 2024.06.05 @ 14:56:27 Sessions 1 Manual Loads 0 Difficulty Rogue Special Mode None Game No. 53 Rogue 53 Adventurer 0 Explorer 0 Win Type - Total 0 Types 0/0/0/0/0/0/0/0/0 Lore% 20 Gallery% 23 Achievement% 20 Wizard Run 0 Options --------- Layout 0 ASCII 0 Keyboard 0 Movement Mouse Keybinds 0 Fullscreen 2 Font 18/Terminus Map View 76x50 Zoom Use 0% Tactical HUD 1 Map Filters NONE Filters NONE Steam 1 RUN: 9eeb0afb-a221-4f84-adb6-3a1f25abbc64